bitfinex-derivatives/quotes_BTCF0:USTF0_20250411
["timestamp","ask_amount","ask_price","bid_price","bid_amount"]
[1744368927862,0.060458,82750.0,82749.0,0.1530174]
[1744368928764,0.060458,82750.0,82749.0,0.1846174]
[1744368929568,0.060458,82750.0,82749.0,0.1530174]
[1744368930470,0.060458,82750.0,82749.0,0.1209174]
[1744368931068,0.060458,82750.0,82749.0,0.1509174]
[1744368933269,0.1209233,82745.0,82744.0,0.0307]
[1744368933468,0.1209233,82745.0,82744.0,0.1516247]
[1744368934169,0.1209233,82745.0,82744.0,0.1823247]
[1744368938977,0.1524233,82745.0,82744.0,0.2131247]
[1744368939471,0.1209335,82738.0,82737.0,0.00018129]
[1744368939676,0.4817335,82738.0,82737.0,0.00018129]
[1744368939879,0.5138335,82738.0,82737.0,0.00018129]
[1744368940472,0.5138335,82738.0,82737.0,0.12111629]
[1744368942079,0.5138335,82738.0,82737.0,0.15371629]
[1744368944179,0.5443335,82738.0,82737.0,0.15371629]
[1744368944774,0.1835335,82738.0,82737.0,0.15371629]
[1744368944975,0.5443335,82738.0,82737.0,0.15371629]
[1744368946083,0.421265,82741.0,82737.0,0.15371629]
[1744368946084,0.060465,82741.0,82738.0,0.0604667]
[1744368946374,0.4817238,82745.0,82744.0,0.1209247]
[1744368946881,0.4817638,82745.0,82744.0,0.1209247]
[1744368947178,0.0604609,82746.0,82745.0,0.1209233]
[1744368947378,0.0604609,82746.0,82745.0,0.1822233]
[1744368947680,5.401e-05,82749.0,82748.0,0.1209189]
[1744368948070,0.9607722,82754.0,82753.0,0.1209116]
[1744368948575,0.9607722,82754.0,82753.0,0.1820116]
[1744368948873,1.021228,82754.0,82753.0,0.1820116]
[1744368950483,0.602628,82754.0,82753.0,0.1820116]
[1744368951483,0.602628,82754.0,82753.0,0.0309]
[1744368951681,0.602628,82754.0,82753.0,0.1518116]
[1744368953679,0.602628,82754.0,82753.0,0.1823116]
[1744368955785,0.4817111,82754.0,82753.0,0.1823116]
[1744368956385,0.4817511,82754.0,82753.0,0.1823116]
[1744368956689,0.4212953,82754.0,82753.0,0.1823116]
[1744368959586,0.4212953,82754.0,82753.0,0.01956019]
[1744368959788,0.5065953,82754.0,82753.0,0.01956019]
[1744368960092,0.4853953,82754.0,82753.0,0.01956019]
[1744368962688,0.4853953,82754.0,82748.0,0.0316]
[1744368962896,0.1209262,82743.0,82742.0,0.0321]
[1744368963194,0.4817262,82743.0,82742.0,0.1530277]
[1744368963394,0.5453262,82743.0,82742.0,0.1530277]
[1744368963605,0.5453262,82743.0,82742.0,0.0321]
[1744368963889,0.1209335,82738.0,82737.0,0.00018129]
[1744368964094,0.4817335,82738.0,82737.0,0.00018129]
[1744368964293,0.5469335,82738.0,82737.0,0.00018129]
[1744368965591,0.5681335,82738.0,82737.0,0.00018129]
[1744368965796,0.1209467,82729.0,82728.0,0.1529478]
[1744368966094,0.4817467,82729.0,82728.0,0.1529478]
[1744368966293,0.5455467,82729.0,82728.0,0.1529478]
[1744368966692,0.5455467,82729.0,82728.0,0.032]
[1744368966896,0.5455467,82729.0,82728.0,0.1529481]
[1744368967889,0.5455467,82729.0,82728.0,0.032]
[1744368968092,0.5455467,82729.0,82728.0,0.0646]
[1744368969390,0.5455467,82729.0,82728.0,0.1855481]
[1744368969989,0.1847467,82729.0,82728.0,0.1855481]
[1744368970194,0.1847467,82729.0,82728.0,0.2179481]
[1744368971693,0.1847467,82729.0,82728.0,0.097]
[1744368971883,0.1847467,82729.0,82728.0,0.2179481]
[1744368972396,0.4817443,82731.0,82730.0,0.1209452]
[1744368972791,5.401e-05,82734.0,82733.0,0.1209408]
[1744368973092,0.3608,82738.0,82736.0,0.1209364]
[1744368973292,0.4817344,82738.0,82736.0,0.1209364]
[1744368973491,0.12111589,82737.0,82736.0,0.1864364]
[1744368973895,0.00018089,82737.0,82736.0,0.1864364]
[1744368975691,0.12111589,82737.0,82736.0,0.1864364]
[1744368975899,0.12115589,82737.0,82736.0,0.1864364]
[1744368977004,0.00022089,82737.0,82736.0,0.1864364]
[1744368977702,0.00018089,82737.0,82736.0,0.1864364]
[1744368978611,0.00022089,82737.0,82736.0,0.1864364]
[1744368979599,0.00018089,82737.0,82736.0,0.1864364]
[1744368979898,0.00022089,82737.0,82736.0,0.1864364]
[1744368982402,0.00022089,82737.0,82736.0,0.5946364]
[1744368982705,7.291e-05,82754.0,82753.0,0.1813666]
[1744368983300,0.03307291,82754.0,82753.0,0.1813666]
[1744368983510,0.03307291,82754.0,82753.0,0.2423666]
[1744368983808,0.1209189,82748.0,82747.0,0.1209199]
[1744368984098,0.4817189,82748.0,82747.0,0.1209199]
[1744368984503,0.4817189,82748.0,82747.0,0.1529199]
[1744368985206,0.5149189,82748.0,82747.0,0.2189199]
[1744368986307,0.3608,82748.0,82747.0,0.2189199]
[1744368986709,0.36084,82748.0,82747.0,0.2189199]
[1744368987095,0.3608,82748.0,82747.0,0.2189199]
[1744368987301,0.36084,82748.0,82747.0,0.2189199]
[1744368987805,4e-05,82748.0,82747.0,0.2189199]
[1744368989899,4e-05,82748.0,82747.0,0.6271199]
[1744368990106,0.3608,82772.0,82769.0,0.1208882]
[1744368990306,0.1212888,82770.0,82769.0,0.1208882]
[1744368990615,0.0004,82770.0,82755.0,0.0329]
[1744368990904,0.1208984,82762.0,82761.0,0.1847984]
[1744368991110,0.4816984,82762.0,82761.0,0.2172984]
[1744368991303,0.5462984,82762.0,82761.0,0.2172984]
[1744368993104,0.3936,82762.0,82761.0,0.2172984]
[1744368993405,0.5144984,82762.0,82761.0,0.2172984]
[1744368993807,0.5455384,82762.0,82761.0,0.2172984]
[1744368994203,0.5455384,82762.0,82761.0,0.1847984]
[1744368995209,0.5455384,82762.0,82761.0,0.2149984]
[1744369000218,0.1847384,82762.0,82761.0,0.2149984]
[1744369003923,0.5455384,82762.0,82761.0,0.2149984]
[1744369005123,0.5145384,82762.0,82761.0,0.2149984]
[1744369006523,0.5478384,82762.0,82761.0,0.2149984]
[1744369011220,4e-05,82762.0,82761.0,0.2149984]
[1744369011617,0.1522926,82766.0,82765.0,0.1208941]
[1744369011818,0.1813469,82764.0,82761.0,0.2149952]
[1744369012116,0.1208984,82762.0,82761.0,0.2149989]
[1744369012934,0.12094501,82768.0,82767.0,0.1208911]
[1744369013136,0.120891,82768.0,82767.0,0.1208911]
[1744369013323,0.120931,82768.0,82767.0,0.1208911]
[1744369014028,0.120931,82768.0,82767.0,0.1842911]
[1744369016124,0.120931,82768.0,82767.0,0.0312]
[1744369016125,0.481731,82768.0,82767.0,0.0312]
[1744369016929,0.481731,82768.0,82767.0,0.1520911]
[1744369017628,0.481691,82768.0,82767.0,0.1826911]
[1744369017833,0.481731,82768.0,82767.0,0.1826911]
[1744369022322,0.481731,82768.0,82767.0,0.17135346]
[1744369023034,0.481691,82768.0,82767.0,0.17135346]
[1744369023234,0.481731,82768.0,82767.0,0.17135346]
[1744369027438,0.120931,82768.0,82767.0,0.17135346]
[1744369027638,0.481731,82768.0,82767.0,0.17135346]
[1744369028440,0.512731,82768.0,82767.0,0.16001538]
[1744369028631,0.1208984,82762.0,82761.0,0.031]
[1744369028837,0.1208984,82762.0,82761.0,0.1518999]
[1744369029036,0.1518984,82762.0,82761.0,0.1518999]
[1744369031330,0.1518984,82762.0,82761.0,0.1843999]
[1744369031531,0.1518984,82762.0,82761.0,0.2156999]
[1744369031739,0.5126984,82762.0,82761.0,0.2156999]
[1744369032732,0.5126984,82762.0,82761.0,0.0948]
[1744369032932,0.1209218,82746.0,82745.0,0.18156349]
[1744369033338,0.1531218,82746.0,82745.0,0.18156349]
[1744369038437,0.1531218,82746.0,82745.0,0.24386349]
[1744369039149,0.1531218,82746.0,82745.0,0.00018129]
[1744369039344,0.1840218,82746.0,82745.0,0.00018129]
[1744369041150,0.1531218,82746.0,82745.0,0.00018129]
[1744369041449,0.1531218,82746.0,82745.0,0.12110459]
[1744369041647,0.1840618,82746.0,82745.0,0.00018129]
[1744369049253,0.120951,82726.0,82725.0,0.1814237]
[1744369049647,0.481751,82726.0,82725.0,0.1814237]
[1744369049848,0.120951,82726.0,82725.0,0.1814237]
[1744369050058,0.060462,82745.0,82744.0,0.0604623]
[1744369050350,0.00018129,82753.0,82743.0,0.060463]
[1744369050557,0.00018129,82753.0,82752.0,0.120913]
[1744369050745,0.00022129,82753.0,82752.0,0.120913]
[1744369051055,0.00022129,82753.0,82752.0,0.185213]
[1744369053053,0.12113289,82753.0,82752.0,0.185213]
[1744369057564,0.15363289,82753.0,82752.0,0.185213]
[1744369063054,0.28272129,82753.0,82736.0,0.00018129]
[1744369063259,0.1209335,82738.0,82737.0,0.2135952]
[1744369063767,0.1844335,82738.0,82737.0,0.2443952]
[1744369063968,0.1844335,82738.0,82737.0,0.2135952]
[1744369064360,0.1844335,82738.0,82737.0,0.0926661]
[1744369065063,0.120935,82737.0,82736.0,0.00018129]
[1744369065464,0.181835,82737.0,82736.0,0.00018129]
[1744369072072,0.215035,82737.0,82736.0,0.00018129]
[1744369075078,0.936635,82737.0,82736.0,0.00018129]
[1744369082877,0.575835,82737.0,82736.0,0.00018129]
[1744369085080,0.542635,82737.0,82736.0,0.00018129]
[1744369085983,0.1209496,82727.0,82726.0,0.0322]
[1744369086176,0.4817496,82727.0,82726.0,0.0322]
[1744369086375,0.5467496,82727.0,82726.0,0.0322]
[1744369086674,0.1814785,82704.0,82703.0,0.1814709]
[1744369087067,0.1209847,82703.0,82702.0,0.0635]
[1744369087469,0.1209847,82703.0,82702.0,0.0319]
[1744369087678,0.1524847,82703.0,82702.0,0.0319]
[1744369087976,0.1844847,82703.0,82702.0,0.0319]
[1744369089883,0.19652403,82703.0,82702.0,0.0319]
[1744369090068,0.19652403,82703.0,82695.0,0.00018129]
[1744369090069,0.1209891,82700.0,82695.0,0.00018129]
[1744369090273,0.5771491,82700.0,82695.0,0.03028129]
[1744369090473,0.1209949,82696.0,82695.0,0.00018129]
[1744369090680,0.1210081,82687.0,82686.0,0.0654]
[1744369090978,0.4818081,82687.0,82686.0,0.0654]
[1744369091190,0.5464081,82687.0,82686.0,0.0325]
[1744369094979,0.5464081,82687.0,82686.0,0.0637]
[1744369095174,0.5464081,82687.0,82686.0,0.0944]
[1744369096276,0.5464081,82687.0,82686.0,0.0632]
[1744369096584,0.5464081,82687.0,82681.0,0.0605082]
[1744369096585,0.1815267,82682.0,82681.0,0.0605082]
[1744369096881,0.1210169,82681.0,82680.0,0.0307]
[1744369097079,0.1517169,82681.0,82680.0,0.1517183]
[1744369097881,0.1210183,82680.0,82679.0,0.0312]
[1744369098083,0.5139183,82680.0,82679.0,0.0312]
[1744369098283,0.5441183,82680.0,82679.0,0.0312]
[1744369098885,0.5441183,82680.0,82679.0,0.0642]
[1744369100887,0.5441183,82680.0,82679.0,0.1852198]
[1744369101576,0.5441183,82680.0,82679.0,0.0642]
[1744369105490,0.1833183,82680.0,82679.0,0.0642]
[1744369107895,0.1512183,82680.0,82679.0,0.1852198]
[1744369108791,0.1512183,82680.0,82679.0,0.0642]
[1744369109194,0.2463783,82680.0,82679.0,0.0642]
[1744369109497,0.2463783,82680.0,82679.0,0.1852198]
[1744369109704,0.1512183,82680.0,82679.0,0.0642]
[1744369109890,0.2463783,82680.0,82679.0,0.0642]
[1744369110088,0.1512183,82680.0,82679.0,0.0642]
[1744369110388,0.2463783,82680.0,82679.0,0.0642]
[1744369110899,0.1512183,82680.0,82679.0,0.0642]
[1744369111398,0.0605133,82675.0,82671.0,0.00093]
[1744369111598,0.48183,82672.0,82671.0,0.00093]
[1744369112090,0.54483,82672.0,82671.0,0.00093]
[1744369113693,0.1210418,82664.0,82663.0,0.0001814]
[1744369113896,0.4818418,82664.0,82663.0,0.0001814]
[1744369114092,0.5141418,82664.0,82663.0,0.0001814]
[1744369114406,0.5452418,82664.0,82663.0,0.0001814]
[1744369115292,0.1210549,82655.0,82654.0,0.060528]
[1744369115494,0.0605289,82654.0,82650.0,0.1210622]
[1744369115687,0.1210593,82652.0,82651.0,0.03158396]
[1744369115891,0.1210593,82652.0,82651.0,0.15264476]
[1744369116299,0.1210593,82652.0,82651.0,0.03158396]
[1744369116496,0.1514593,82652.0,82651.0,0.03158396]
[1744369116696,0.1514593,82652.0,82651.0,0.15264476]
[1744369117501,0.1514593,82652.0,82651.0,0.18304476]
[1744369119194,0.1210593,82652.0,82651.0,0.18304476]
[1744369119608,0.1210993,82652.0,82651.0,0.18304476]
[1744369120400,0.1520993,82652.0,82651.0,0.18304476]
[1744369121703,0.5128993,82652.0,82651.0,0.06198396]
[1744369121903,0.1520993,82652.0,82651.0,0.18304476]
[1744369122609,0.4213268,82656.0,82655.0,0.1210549]
[1744369122799,0.3608,82656.0,82655.0,0.1210549]
[1744369123297,4e-05,82656.0,82655.0,0.1210549]
[1744369123498,4e-05,82656.0,82655.0,0.5292549]
[1744369123693,0.1210521,82657.0,82656.0,0.1210535]
[1744369123898,0.0605245,82659.0,82658.0,0.1210505]
[1744369125699,0.1210475,82661.0,82660.0,0.1815699]
[1744369126702,0.12109771,82663.0,82662.0,0.1210447]
[1744369126904,5.401e-05,82663.0,82662.0,0.1210447]
[1744369127112,0.0314,82671.0,82670.0,0.121033]
[1744369127406,0.1210315,82671.0,82670.0,0.1815495]
[1744369128601,0.1537315,82671.0,82670.0,0.1815495]
[1744369130808,0.1210418,82664.0,82663.0,0.4082]
[1744369131314,0.1826418,82664.0,82663.0,0.4082]
[1744369131508,0.1947633,82664.0,82663.0,0.4082]
[1744369131809,0.1948033,82664.0,82663.0,0.4082]
[1744369132409,0.1633033,82664.0,82663.0,0.4082]
[1744369133102,0.0906609,82664.0,82663.0,0.1210432]
[1744369133501,0.0906209,82664.0,82663.0,0.1210432]
[1744369134005,0.0906609,82664.0,82663.0,0.0317]
[1744369134198,0.1212609,82664.0,82663.0,0.0317]
[1744369134402,0.1212609,82664.0,82663.0,0.0628]
[1744369135114,0.1210432,82663.0,82662.0,0.0001814]
[1744369135307,0.1210432,82663.0,82662.0,0.1212261]
[1744369135615,0.1537432,82663.0,82662.0,0.1212261]
[1744369135911,0.1537432,82663.0,82662.0,0.0001814]
[1744369136805,0.1863432,82663.0,82662.0,0.0001814]
[1744369147215,0.1863432,82663.0,82662.0,0.1212261]
[1744369147614,0.1863432,82663.0,82662.0,0.1518261]
[1744369149027,0.1537432,82663.0,82662.0,0.1843261]
[1744369149526,0.1537832,82663.0,82662.0,0.1843261]
[1744369149817,0.03274,82663.0,82662.0,0.1843261]
[1744369150018,0.0327,82663.0,82662.0,0.1843261]
[1744369150224,0.03274,82663.0,82662.0,0.1843261]
[1744369151623,4e-05,82663.0,82662.0,0.1843261]
[1744369151821,4e-05,82663.0,82662.0,0.20112254]
[1744369152023,0.0313,82671.0,82670.0,0.121033]
[1744369152223,0.03135401,82671.0,82670.0,0.121033]
[1744369152416,0.03135401,82671.0,82670.0,0.216833]
[1744369152618,0.0313,82671.0,82670.0,0.216833]
[1744369152814,0.03134,82671.0,82670.0,0.216833]
[1744369153023,0.0313,82671.0,82670.0,0.216833]
[1744369153231,0.03134,82671.0,82670.0,0.216833]
[1744369155724,0.03134,82671.0,82670.0,0.625033]
[1744369158820,0.1523715,82671.0,82670.0,0.529233]
[1744369159027,0.2148715,82671.0,82670.0,0.529233]
[1744369161138,0.09384,82671.0,82670.0,0.529233]
[1744369161336,0.1847715,82671.0,82670.0,0.529233]
[1744369161636,0.06374,82671.0,82670.0,0.152733]
[1744369164342,0.1847715,82671.0,82670.0,0.152733]
[1744369164941,0.1210432,82663.0,82662.0,0.0607032]
[1744369165242,0.4818432,82663.0,82662.0,0.0607032]
[1744369165941,0.4818432,82663.0,82662.0,0.1817432]
[1744369166352,0.5434432,82663.0,82662.0,0.1817432]
[1744369168152,0.1826432,82663.0,82662.0,0.1817432]
[1744369168358,0.0616,82663.0,82662.0,0.1817432]
[1744369169864,0.1826432,82663.0,82662.0,0.1817432]
[1744369170559,0.5434432,82663.0,82662.0,0.1817432]
[1744369173758,0.5434432,82663.0,82662.0,0.0607032]
[1744369182568,0.1826432,82663.0,82662.0,0.0607032]
[1744369182769,0.5434432,82663.0,82662.0,0.0607032]
[1744369183663,0.1826432,82663.0,82662.0,0.0607032]
[1744369183871,0.5434432,82663.0,82662.0,0.0607032]
[1744369184268,0.5434432,82663.0,82662.0,0.0919032]
[1744369186370,0.1826432,82663.0,82662.0,0.0919032]
[1744369187468,0.0303,82663.0,82662.0,0.0919032]
[1744369187675,0.03034,82663.0,82662.0,0.1232032]
[1744369190475,4e-05,82663.0,82662.0,0.14008824]
[1744369190680,0.0302,82670.0,82669.0,0.1210344]
[1744369191086,0.0302,82670.0,82669.0,0.1836344]
[1744369191770,0.03024,82670.0,82669.0,0.1836344]
[1744369192571,0.0302,82670.0,82669.0,0.1836344]
[1744369192776,0.03024,82670.0,82669.0,0.1836344]
[1744369193281,0.03024,82670.0,82669.0,0.1527344]
[1744369193983,0.03024,82670.0,82669.0,0.1850344]
[1744369195580,0.0302,82670.0,82669.0,0.1850344]
[1744369195780,0.03024,82670.0,82669.0,0.1850344]
[1744369197677,4e-05,82670.0,82669.0,0.1850344]
[1744369197879,0.0605088,82681.0,82669.0,0.1850344]
[1744369197880,0.35898675,82722.0,82677.0,0.3608]
[1744369198180,0.0327,82737.0,82729.0,0.1209467]
[1744369198373,5.401e-05,82740.0,82729.0,0.7216]
[1744369198573,0.0327,82744.0,82740.0,0.060465]
[1744369198781,0.0327,82744.0,82743.0,0.1209262]
[1744369199785,0.03274,82744.0,82743.0,0.1209262]
[1744369200179,0.03274,82744.0,82743.0,0.49795129]
[1744369200382,0.7644647,82744.0,82743.0,0.01622509]
[1744369200578,0.5144647,82744.0,82743.0,0.01622509]
[1744369200885,0.1209379,82735.0,82734.0,0.00018128]
[1744369201285,0.1209584,82721.0,82720.0,0.21665038]
[1744369201586,0.0604778,82723.0,82722.0,0.1209569]
[1744369201781,0.0632,82725.0,82720.0,0.0604799]
[1744369201976,0.0632,82725.0,82724.0,0.120954]
[1744369203574,0.1841525,82725.0,82724.0,0.120954]
[1744369203777,0.1841525,82725.0,82716.0,0.00018128]
[1744369203778,0.1209642,82717.0,82716.0,0.00018128]
[1744369204079,0.0632,82725.0,82724.0,0.120954]
[1744369205276,0.06324,82725.0,82724.0,0.120954]
[1744369205981,0.03214,82725.0,82724.0,0.120954]
[1744369206176,0.0321,82725.0,82724.0,0.154054]
[1744369206382,0.00018128,82733.0,82728.0,0.0604733]
[1744369206579,0.00018128,82733.0,82732.0,0.4817423]
[1744369206884,0.00022128,82733.0,82732.0,0.4817423]
[1744369207280,0.00022128,82733.0,82732.0,0.5125423]
[1744369207477,0.00022128,82733.0,82732.0,0.1209423]
[1744369209683,0.03208128,82733.0,82732.0,0.1209423]
[1744369210084,0.03208128,82733.0,82732.0,0.1517423]
[1744369210488,0.03212128,82733.0,82732.0,0.1517423]
[1744369212186,0.00022128,82733.0,82732.0,0.1517423]
[1744369212491,0.03112128,82733.0,82732.0,0.1517423]
[1744369212684,8e-08,82733.0,82732.0,0.5599423]
[1744369212890,8e-08,82733.0,82732.0,0.9518423]
[1744369213093,0.0311,82745.0,82744.0,0.1209247]
[1744369213382,0.0311,82745.0,82744.0,0.4817247]
[1744369214794,0.0311,82745.0,82744.0,0.5118247]
[1744369215183,0.0311,82745.0,82744.0,0.5432247]
[1744369216288,0.0311,82745.0,82744.0,0.1824247]
[1744369216490,0.0311,82745.0,82744.0,0.5432247]
[1744369217095,0.0311,82745.0,82744.0,0.4817247]
[1744369217692,0.0311,82745.0,82737.0,0.0604675]
[1744369217895,0.1209298,82741.0,82740.0,0.1209302]
[1744369218490,0.2175298,82741.0,82740.0,0.1209302]
[1744369218789,0.0966,82741.0,82740.0,0.1209302]
[1744369218995,0.1209266,82744.0,82743.0,0.1209249]
[1744369222096,0.2139266,82744.0,82743.0,0.1209249]
[1744369222512,0.093,82744.0,82743.0,0.1209249]
[1744369222797,0.2139247,82744.0,82743.0,0.1209249]
[1744369223385,0.1813929,82742.0,82741.0,0.1209278]
[1744369223587,0.120935,82737.0,82736.0,0.00018128]
[1744369224094,0.182635,82737.0,82736.0,0.00018128]
[1744369233508,0.182635,82737.0,82736.0,0.12111768]
[1744369233707,0.182635,82737.0,82736.0,0.00018128]
[1744369234104,0.182635,82737.0,82736.0,0.03298128]
[1744369234404,0.0315,82737.0,82736.0,0.18441768]
[1744369234610,0.152435,82737.0,82736.0,0.18441768]
[1744369234909,0.152475,82737.0,82736.0,0.18441768]
[1744369235096,4e-05,82737.0,82736.0,0.18441768]
[1744369235297,4e-05,82737.0,82736.0,0.54521768]
[1744369235606,5.401e-05,82743.0,82737.0,0.120935]
[1744369235607,0.120934,82738.0,82737.0,0.120935]
[1744369235912,0.120934,82738.0,82737.0,0.19715055]
[1744369236104,0.060466,82740.0,82739.0,0.120932]
[1744369236309,0.060466,82740.0,82739.0,0.13414755]
[1744369236901,5.401e-05,82745.0,82739.0,0.07368085]
[1744369237107,0.0604604,82747.0,82744.0,0.1209247]
[1744369237295,0.1209218,82746.0,82745.0,0.1858218]
[1744369237697,0.42131051,82752.0,82745.0,0.0649]
[1744369237901,0.42131051,82752.0,82751.0,0.1209145]
[1744369238101,0.06051051,82752.0,82751.0,0.1209145]
[1744369238405,0.09151051,82752.0,82751.0,0.1209145]
[1744369238609,0.0914565,82752.0,82751.0,0.1209145]
[1744369238802,4e-05,82752.0,82751.0,0.1856145]
[1744369238996,0.120953,82752.0,82751.0,0.1856145]
[1744369239201,0.120953,82752.0,82751.0,0.2160145]
[1744369239604,0.00018128,82753.0,82752.0,0.120913]
[1744369239910,0.12109288,82753.0,82752.0,0.19716209]
[1744369240204,0.12109288,82753.0,82752.0,0.184013]
[1744369240507,7.291e-05,82765.0,82758.0,0.0604514]
[1744369240697,0.1208848,82776.0,82764.0,0.7216]
[1744369240898,0.1208809,82774.0,82773.0,0.3608]
[1744369241104,0.1208926,82766.0,82765.0,0.0937]
[1744369241405,0.1208926,82766.0,82765.0,0.0628]
[1744369241798,0.1208926,82766.0,82765.0,0.1836941]
[1744369243412,0.1208941,82765.0,82764.0,0.3608]
[1744369243715,0.1539941,82765.0,82764.0,0.3608]
[1744369244415,0.1208955,82764.0,82763.0,0.21534063]
[1744369244617,0.1517955,82764.0,82763.0,0.21534063]
[1744369246619,0.1209014,82760.0,82759.0,0.0316]
[1744369246812,0.1209014,82760.0,82759.0,0.0629]
[1744369247719,0.1838014,82760.0,82759.0,0.0629]
[1744369248417,0.1209043,82758.0,82751.0,0.21534063]
[1744369248617,0.1209043,82758.0,82752.0,0.0621]
[1744369252318,0.2791243,82758.0,82757.0,8e-08]
[1744369252720,0.5291243,82758.0,82757.0,8e-08]
[1744369256028,0.2791243,82758.0,82757.0,8e-08]
[1744369260431,0.1209189,82748.0,82747.0,8e-08]
[1744369260634,0.4817189,82748.0,82747.0,8e-08]
[1744369260931,0.5732189,82748.0,82747.0,8e-08]
[1744369261732,0.5732589,82748.0,82747.0,8e-08]
[1744369263729,0.5732589,82748.0,82739.0,0.00018128]
[1744369263730,0.1209306,82740.0,82739.0,6e-08]
[1744369263927,0.45476,82740.0,82728.0,0.0322]
[1744369264123,0.1209525,82725.0,82724.0,0.03216]
[1744369265036,0.1209525,82725.0,82724.0,0.153114]
[1744369265725,0.1209925,82725.0,82724.0,0.03216]
[1744369265925,0.1209925,82725.0,82724.0,0.153114]
[1744369266322,0.1209925,82725.0,82724.0,0.03216]
[1744369267127,0.1531925,82725.0,82724.0,0.06456]
[1744369267328,0.1531925,82725.0,82724.0,0.03216]
[1744369267939,0.1531925,82725.0,82724.0,0.06456]
[1744369269338,0.5139925,82725.0,82724.0,0.03216]
[1744369269728,0.5139925,82725.0,82724.0,0.06366]
[1744369271542,0.0604804,82720.0,82716.0,0.00018128]
[1744369271739,0.1209642,82717.0,82716.0,0.03268128]
[1744369272140,0.1538642,82717.0,82716.0,0.03268128]
[1744369274137,0.1209642,82717.0,82716.0,0.03268128]
[1744369274939,0.1210042,82717.0,82716.0,0.15364698]
[1744369275136,0.1209642,82717.0,82716.0,0.15364698]
[1744369275338,0.13133165,82717.0,82716.0,0.15364698]
[1744369275734,0.13133165,82717.0,82716.0,0.03268128]
[1744369275929,0.13133165,82717.0,82716.0,0.15364698]
[1744369276137,0.1209642,82717.0,82716.0,0.15364698]
[1744369276441,0.1210042,82717.0,82716.0,0.15364698]
[1744369276638,0.0604754,82727.0,82724.0,0.1814272]
[1744369276843,0.0604763,82725.0,82724.0,0.1814272]
[1744369277336,0.120954,82724.0,82723.0,0.3608]
[1744369277545,0.1814456,82718.0,82717.0,0.1814385]
[1744369277841,0.1814456,82718.0,82717.0,0.55534199]
[1744369278042,0.1814456,82718.0,82717.0,0.58784199]
[1744369278243,0.1814412,82721.0,82720.0,0.1209598]
[1744369278435,0.1814412,82721.0,82720.0,0.16656329]
[1744369278635,0.0604797,82721.0,82720.0,0.41656329]
[1744369278830,0.0605197,82721.0,82720.0,0.41656329]
[1744369279744,0.0604797,82721.0,82720.0,0.04560349]
[1744369280042,0.0605197,82721.0,82720.0,0.0325]
[1744369280242,0.0605197,82721.0,82720.0,0.1534598]
[1744369280435,0.0605197,82721.0,82720.0,0.0325]
[1744369280836,0.0916197,82721.0,82720.0,0.0325]
[1744369286548,0.1231197,82721.0,82720.0,0.0325]
[1744369286950,0.1209642,82717.0,82716.0,0.00018128]
[1744369287151,0.1209642,82717.0,82716.0,0.03218128]
[1744369287342,0.1839642,82717.0,82716.0,0.03218128]
[1744369288050,0.1524642,82717.0,82716.0,0.03218128]
[1744369290554,0.1842642,82717.0,82716.0,0.03218128]
[1744369298460,0.1524642,82717.0,82716.0,0.03218128]
[1744369298973,0.1525042,82717.0,82716.0,0.03218128]
[1744369299459,0.1525042,82717.0,82716.0,0.04816236]
[1744369300058,0.1209642,82717.0,82716.0,0.04816236]
[1744369300761,0.1210042,82717.0,82716.0,0.04816236]
[1744369300954,0.1210042,82717.0,82716.0,0.16912806]
[1744369301357,0.1210042,82717.0,82716.0,0.20132806]
[1744369301558,0.1209642,82717.0,82716.0,0.20132806]
[1744369301757,0.1210042,82717.0,82716.0,0.20132806]
[1744369303062,0.1209642,82717.0,82716.0,0.20132806]
[1744369303255,0.1210042,82717.0,82716.0,0.20132806]
[1744369303858,0.0604773,82724.0,82721.0,0.1814338]
[1744369304063,0.1209569,82723.0,82722.0,0.0932]
[1744369304265,0.1209569,82723.0,82722.0,0.454]
[1744369304562,0.1209969,82723.0,82722.0,0.454]
[1744369304862,0.1814746,82723.0,82722.0,0.6354338]
[1744369305157,0.1814746,82723.0,82722.0,0.9226784]
[1744369306565,0.1814746,82723.0,82722.0,0.93853548]
[1744369306759,0.0605177,82723.0,82722.0,0.93853548]
[1744369306958,0.1209954,82723.0,82722.0,0.93853548]
[1744369308262,0.1209954,82723.0,82722.0,0.9226784]
[1744369308460,0.1537954,82723.0,82722.0,0.9226784]
[1744369310562,0.1537954,82723.0,82722.0,0.4383]
[1744369310773,0.1870954,82723.0,82722.0,0.4383]
[1744369311163,0.1870954,82723.0,82722.0,0.0301]
[1744369311360,0.1870954,82723.0,82722.0,0.1510569]
[1744369311968,0.1870954,82723.0,82722.0,0.0301]
[1744369313059,0.1870954,82723.0,82722.0,0.1814569]
[1744369313268,0.1870954,82723.0,82722.0,0.0605]
[1744369313663,0.1870954,82723.0,82722.0,0.1814569]
[1744369314469,0.1870954,82723.0,82722.0,0.0605]
[1744369315866,0.1870954,82723.0,82722.0,0.1814569]
[1744369316266,0.1870954,82723.0,82722.0,0.0605]
[1744369316564,0.1209569,82722.0,82721.0,0.3608]
[1744369317069,0.1813569,82722.0,82721.0,0.3608]
[1744369327183,0.1813569,82722.0,82703.0,0.24754063]
[1744369327184,0.1209832,82704.0,82703.0,0.21534063]
[1744369327589,0.2181832,82704.0,82703.0,0.21534063]
[1744369329282,0.2181832,82704.0,82703.0,0.14756613]
[1744369329979,0.1209891,82700.0,82699.0,0.28760452]
[1744369330482,0.1857891,82700.0,82699.0,0.24716862]
[1744369330681,0.1209949,82696.0,82695.0,3e-08]
[1744369330981,0.4817949,82696.0,82695.0,3e-08]
[1744369331170,0.5470949,82696.0,82695.0,3e-08]
[1744369332784,0.55597393,82696.0,82695.0,3e-08]
[1744369332988,0.121011,82685.0,82684.0,0.28882743]
[1744369333179,0.575531,82685.0,82684.0,0.28882743]
[1744369333486,0.672931,82685.0,82684.0,0.28882743]
[1744369333883,0.1210227,82677.0,82676.0,0.35909587]
[1744369334088,0.0605198,82666.0,82650.0,0.4082]
[1744369334277,0.1210505,82658.0,82657.0,0.0613]
[1744369334776,0.1832505,82658.0,82657.0,0.0613]
[1744369335176,0.1210579,82653.0,82652.0,0.0303]
[1744369336080,0.1829579,82653.0,82652.0,0.0303]
[1744369336385,0.1210593,82652.0,82648.0,0.031]
[1744369336584,0.1210593,82652.0,82648.0,0.0622]
[1744369336881,0.1839593,82652.0,82648.0,0.031]
[1744369337086,0.15593,82652.0,82646.0,0.35909587]
[1744369337384,0.1210916,82630.0,82606.0,0.71989587]
[1744369337686,0.121093,82629.0,82628.0,0.0319]
[1744369337870,0.121093,82629.0,82627.0,0.0316841]
[1744369337871,0.1210945,82628.0,82627.0,0.0004841]